bitfinex/quotes_BTCUSD_20251027
["timestamp","ask_amount","ask_price","bid_price","bid_amount"]
[1761585817861,1.53550413,115400.0,115390.0,0.67949439]
[1761585818037,1.87550413,115400.0,115390.0,0.52733439]
[1761585818251,3.73699443,115400.0,115390.0,0.67949439]
[1761585818440,3.73699443,115400.0,115380.0,0.0004]
[1761585818441,1.76830324,115390.0,115380.0,0.0004]
[1761585818725,3.17937558,115390.0,115380.0,0.05592378]
[1761585818918,3.20585557,115390.0,115380.0,0.05592378]
[1761585819559,3.20585557,115390.0,115380.0,0.10696378]
[1761585819774,3.20785557,115390.0,115380.0,0.10696378]
[1761585820215,3.21685557,115390.0,115380.0,0.10696378]
[1761585820426,2.6263819,115390.0,115380.0,0.10696378]
[1761585820646,1.79090289,115390.0,115380.0,0.10696378]
[1761585821088,1.47557789,115390.0,115380.0,0.10696378]
[1761585821311,2.39330857,115390.0,115380.0,0.10696378]
[1761585821613,0.54952254,115380.0,115370.0,0.0004]
[1761585821760,3.8856776,115380.0,115370.0,0.00052592]
[1761585821984,3.9021576,115380.0,115370.0,0.00052592]
[1761585822645,3.9021576,115380.0,115370.0,0.01872592]
[1761585822857,3.9051576,115380.0,115370.0,0.01872592]
[1761585823063,3.9051576,115380.0,115370.0,0.45540592]
[1761585823300,3.9061576,115380.0,115370.0,0.45540592]
[1761585823750,5.06559964,115380.0,115370.0,0.45540592]
[1761585823963,3.9061576,115380.0,115370.0,0.45540592]
[1761585824447,3.9061576,115380.0,115370.0,0.45581802]
[1761585824950,0.17335529,115370.0,115360.0,0.0004]
[1761585825175,3.54824535,115370.0,115360.0,0.38144364]
[1761585825431,3.60090763,115370.0,115360.0,0.38144364]
[1761585825643,0.51337031,115360.0,115350.0,0.0004]
[1761585825844,3.29790136,115360.0,115350.0,0.00052611]
[1761585826083,3.31438136,115360.0,115350.0,0.00052611]
[1761585826447,3.44038265,115360.0,115350.0,0.00052611]
[1761585827069,3.44138265,115360.0,115350.0,0.00640611]
[1761585827278,3.44138265,115360.0,115350.0,0.00840611]
[1761585827501,0.51338534,115350.0,115340.0,0.0004]
[1761585827714,3.5407344,115350.0,115340.0,0.01272834]
[1761585827932,3.18380472,115350.0,115340.0,0.01272834]
[1761585828142,3.15540672,115350.0,115340.0,0.01272834]
[1761585828356,3.070191,115350.0,115340.0,0.01272834]
[1761585828776,1.954414,115350.0,115340.0,0.01272834]
[1761585828987,1.554457,115350.0,115340.0,0.01272834]
[1761585829201,1.921543,115350.0,115340.0,0.01272834]
[1761585829452,1.925543,115350.0,115340.0,0.01272834]
[1761585829908,2.25232536,115350.0,115340.0,0.01272834]
[1761585830121,2.26084481,115350.0,115340.0,0.01272834]
[1761585831100,1.71097295,115350.0,115340.0,0.01272834]
[1761585831533,1.71097295,115350.0,115340.0,0.01334671]
[1761585832178,1.60445795,115350.0,115340.0,0.01334671]
[1761585833052,1.60445795,115350.0,115340.0,0.45014671]
[1761585833241,2.15432981,115350.0,115340.0,0.45014671]
[1761585833452,0.54958266,115340.0,115330.0,0.0004]
[1761585833627,2.39932954,115340.0,115330.0,0.22932611]
[1761585833805,1.73190954,115340.0,115330.0,0.22932611]
[1761585834022,1.43770554,115340.0,115330.0,0.22932611]
[1761585834648,1.43770554,115340.0,115330.0,0.38164611]
[1761585834992,1.34788653,115340.0,115330.0,0.38164611]
[1761585835550,1.34888653,115340.0,115330.0,0.38164611]
[1761585837353,1.31270425,115340.0,115330.0,0.38164611]
[1761585837560,1.34888653,115340.0,115330.0,0.38164611]
[1761585838924,1.24256353,115340.0,115330.0,0.38164611]
[1761585839128,1.33238254,115340.0,115330.0,0.38164611]
[1761585839437,1.33238254,115340.0,115330.0,0.38185227]
[1761585840887,1.29620026,115340.0,115330.0,0.38185227]
[1761585841088,1.24256353,115340.0,115330.0,0.38185227]
[1761585842310,0.69269167,115340.0,115330.0,0.38185227]
[1761585842490,0.35269167,115340.0,115330.0,0.38185227]
[1761585843038,0.35269167,115340.0,115330.0,0.58989227]
[1761585843250,0.31650939,115340.0,115330.0,0.58989227]
[1761585843684,0.33001061,115340.0,115330.0,0.58989227]
[1761585844306,0.32901061,115340.0,115330.0,0.58989227]
[1761585844558,0.32901061,115340.0,115330.0,0.59789227]
[1761585844763,0.32901061,115340.0,115330.0,0.58989227]
[1761585845224,0.32901061,115340.0,115330.0,0.59489227]
[1761585846896,0.32901061,115340.0,115330.0,0.61032227]
[1761585846897,0.31550939,115340.0,115330.0,0.61032227]
[1761585847151,0.31550939,115340.0,115330.0,0.70048227]
[1761585847354,0.29136939,115340.0,115330.0,0.70048227]
[1761585847568,0.29136939,115340.0,115330.0,0.71182227]
[1761585848190,0.31633939,115340.0,115330.0,0.68505227]
[1761585848414,0.4061584,115340.0,115330.0,0.68505227]
[1761585849931,0.79315663,115340.0,115330.0,0.68505227]
[1761585851503,0.70333762,115340.0,115330.0,0.68505227]
[1761585851909,0.29136939,115340.0,115330.0,0.71182227]
[1761585852243,0.20155038,115340.0,115330.0,0.88523768]
[1761585852426,0.18507038,115340.0,115330.0,0.90895768]
[1761585852609,0.17340038,115340.0,115330.0,0.90895768]
[1761585852827,0.22623038,115340.0,115330.0,0.86980768]
[1761585853035,0.20126038,115340.0,115330.0,0.88523768]
[1761585853383,0.22623038,115340.0,115330.0,0.88523768]
[1761585853511,0.20126038,115340.0,115330.0,0.93523768]
[1761585853716,0.18504038,115340.0,115330.0,0.95895768]
[1761585854319,0.01164,115340.0,115330.0,1.34595591]
[1761585854523,0.18562554,115350.0,115330.0,1.34595591]
[1761585854746,0.20184554,115350.0,115340.0,0.17340038]
[1761585855149,0.20184554,115350.0,115340.0,0.01543]
[1761585855345,0.17340038,115340.0,115330.0,1.32552591]
[1761585855596,0.61381377,115350.0,115340.0,0.01543]
[1761585855804,0.21059554,115350.0,115340.0,0.18883038]
[1761585855986,0.20184554,115350.0,115340.0,0.01543]
[1761585856169,0.20184554,115350.0,115340.0,0.02677]
[1761585857134,0.20184554,115350.0,115340.0,0.20017038]
[1761585857344,0.20184554,115350.0,115340.0,0.22589038]
[1761585857553,0.17395554,115350.0,115340.0,0.61288861]
[1761585858177,0.0005702,115350.0,115340.0,0.61288861]
[1761585858636,0.0005702,115350.0,115340.0,0.99988684]
[1761585858859,0.0015702,115350.0,115340.0,0.99988684]
[1761585859065,0.0015702,115350.0,115340.0,0.61288861]
[1761585859473,0.0005702,115350.0,115340.0,0.22589038]
[1761585859611,0.0005702,115350.0,115340.0,0.61288861]
[1761585859809,0.0005702,115350.0,115340.0,0.22589038]
[1761585860040,0.0005702,115350.0,115340.0,0.22389038]
[1761585860243,0.0005702,115350.0,115340.0,0.23389038]
[1761585865051,0.0005702,115350.0,115340.0,0.24244091]
[1761585865475,0.0005702,115350.0,115340.0,0.23389038]
[1761585865689,0.0534002,115350.0,115340.0,0.21017038]
[1761585866123,0.0284302,115350.0,115340.0,0.21017038]
[1761585866661,0.0284302,115350.0,115340.0,0.26561038]
[1761585867035,0.0284302,115350.0,115340.0,0.25561038]
[1761585867196,0.0284302,115350.0,115340.0,0.27933038]
[1761585867431,0.0284302,115350.0,115340.0,0.28533038]
[1761585868612,0.20181554,115350.0,115340.0,0.26161038]
[1761585868809,0.0284302,115350.0,115340.0,0.26161038]
[1761585869015,0.0284302,115350.0,115340.0,0.28643038]
[1761585869360,0.0122102,115350.0,115340.0,0.28643038]
[1761585869557,0.0005702,115350.0,115340.0,0.28643038]
[1761585871447,0.0005702,115350.0,115340.0,0.45975038]
[1761585871990,0.0170102,115350.0,115340.0,0.19074038]
[1761585872192,1.61522677,115350.0,115340.0,0.44276]
[1761585872429,1.61522677,115350.0,115340.0,0.59516]
[1761585872430,1.61219273,115350.0,115340.0,0.59516]
[1761585872820,1.63544609,115350.0,115340.0,0.44276]
[1761585872983,1.63544609,115350.0,115340.0,0.59516]
[1761585873184,0.54958266,115340.0,115330.0,0.09089227]
[1761585873406,1.17774697,115340.0,115330.0,0.66225227]
[1761585873609,1.19418697,115340.0,115330.0,0.66225227]
[1761585874875,1.19618697,115340.0,115330.0,0.66225227]
[1761585875116,1.19718697,115340.0,115330.0,0.66225227]
[1761585875458,0.81038941,115340.0,115330.0,0.66225227]
[1761585875721,1.19718697,115340.0,115330.0,0.66225227]
[1761585878476,2.24498297,115340.0,115330.0,0.66225227]
[1761585878723,2.16254097,115340.0,115330.0,0.66225227]
[1761585879099,1.71000141,115340.0,115330.0,0.66225227]
[1761585879316,2.09679897,115340.0,115330.0,0.66225227]
[1761585880213,1.58123341,115340.0,115330.0,0.66225227]
[1761585880369,1.95228597,115340.0,115330.0,0.66225227]
[1761585880568,1.70100897,115340.0,115330.0,0.66225227]
[1761585880995,1.68948097,115340.0,115330.0,0.66225227]
[1761585882018,0.70193128,115340.0,115330.0,0.66225227]
[1761585882221,1.08872884,115340.0,115330.0,0.66225227]
[1761585883843,0.70193128,115340.0,115330.0,0.66225227]
[1761585884014,1.08872884,115340.0,115330.0,0.66225227]
[1761585885788,1.08872884,115340.0,115330.0,0.57209227]
[1761585885995,1.17854785,115340.0,115330.0,0.57209227]
[1761585886377,1.08872884,115340.0,115330.0,0.57209227]
[1761585886971,0.74872884,115340.0,115330.0,0.57209227]
[1761585889815,0.35384167,115340.0,115330.0,0.58814227]
[1761585890021,0.33099167,115340.0,115330.0,0.59948227]
[1761585890257,0.20499038,115340.0,115330.0,0.77289768]
[1761585890463,0.19284038,115340.0,115330.0,0.77289768]
[1761585890672,0.17540038,115340.0,115330.0,0.79771768]
[1761585890873,0.17640038,115340.0,115330.0,0.79771768]
[1761585891493,0.003,115340.0,115330.0,0.79771768]
[1761585891865,0.17640038,115340.0,115330.0,0.79771768]
[1761585892037,0.17440038,115340.0,115330.0,0.79771768]
[1761585892243,0.00905445,115340.0,115330.0,0.79871768]
[1761585893263,0.18245483,115340.0,115330.0,0.79871768]
[1761585893658,0.00905445,115340.0,115330.0,0.79871768]
[1761585893872,0.18245483,115340.0,115330.0,0.79871768]
[1761585895446,0.18245483,115340.0,115330.0,0.88887768]
[1761585898618,0.18247871,115340.0,115330.0,0.88887768]
[1761585899322,0.20898871,115340.0,115330.0,0.69064227]
[1761585899524,0.62018627,115340.0,115330.0,0.66325227]
[1761585900015,0.62018627,115340.0,115330.0,0.83666768]
[1761585900763,0.23338871,115340.0,115330.0,0.85171768]
[1761585900964,0.59578627,115340.0,115330.0,0.67830227]
[1761585901191,0.62018627,115340.0,115330.0,0.66325227]
[1761585901487,0.33264599,115340.0,115330.0,0.66325227]
[1761585901694,0.71944355,115340.0,115330.0,0.66325227]
[1761585902093,0.71944355,115340.0,115330.0,0.83666768]
[1761585902309,0.62018627,115340.0,115330.0,0.83666768]
[1761585902961,0.62018627,115340.0,115330.0,0.52865227]
[1761585903164,0.62018627,115340.0,115330.0,0.68101227]
[1761585904119,0.62018627,115340.0,115330.0,0.86947768]
[1761585904655,0.62018627,115340.0,115330.0,0.68101227]
[1761585907789,0.72185688,115340.0,115330.0,0.68101227]
[1761585908053,0.00907833,115340.0,115330.0,0.90566768]
[1761585908257,0.00907833,115340.0,115330.0,1.29246524]
[1761585908404,0.001,115340.0,115330.0,1.29246524]
[1761585908607,0.001,115340.0,115330.0,1.63246524]
[1761585909045,0.001,115340.0,115330.0,1.63146524]
[1761585909266,0.0005702,115350.0,115340.0,0.17340038]
[1761585909477,0.00865048,115350.0,115340.0,0.59620794]
[1761585909667,0.00865048,115350.0,115340.0,0.61138794]
[1761585910922,0.00865048,115350.0,115340.0,0.61438794]
[1761585911317,0.00865048,115350.0,115340.0,0.62314835]
[1761585911740,0.00865048,115350.0,115340.0,0.23635079]
[1761585911922,0.00865048,115350.0,115340.0,0.62314835]
[1761585912805,0.00865128,115350.0,115340.0,0.62314835]
[1761585913010,0.00865128,115350.0,115340.0,0.71296736]
[1761585913420,0.00865107,115350.0,115340.0,1.05296736]
[1761585913629,0.0005702,115350.0,115340.0,1.05296736]
[1761585914785,0.0005702,115350.0,115340.0,1.04996736]
[1761585915244,0.0005702,115350.0,115340.0,1.05796736]
[1761585916164,0.0005702,115350.0,115340.0,0.6711698]
[1761585916407,0.0005702,115350.0,115340.0,1.05796736]
[1761585916707,0.0005702,115350.0,115340.0,0.6711698]
[1761585916917,0.0005702,115350.0,115340.0,0.8235298]
[1761585919135,0.0005702,115350.0,115340.0,0.6711698]
[1761585919353,0.0005702,115350.0,115340.0,1.2602498]
[1761585919551,0.0005702,115350.0,115340.0,0.23259038]
[1761585919777,0.0281202,115350.0,115340.0,0.79699038]
[1761585919975,0.0005702,115350.0,115340.0,0.82167038]
[1761585921420,0.0005702,115350.0,115340.0,0.83016086]
[1761585921800,0.0005702,115350.0,115340.0,1.21694534]
[1761585922002,0.0159202,115350.0,115340.0,0.79699038]
[1761585924110,0.0005702,115350.0,115340.0,1.20845486]
[1761585924344,0.0005702,115350.0,115340.0,1.21694766]
[1761585925175,0.0005702,115350.0,115340.0,1.69355115]
[1761585925391,0.0005702,115350.0,115340.0,2.03355115]
[1761585928794,0.23037378,115390.0,115340.0,2.03355115]
[1761585928795,0.0122,115390.0,115380.0,0.17334026]
[1761585929011,0.03081342,115400.0,115390.0,0.17332524]
[1761585929246,0.20986963,115400.0,115390.0,0.36330524]
[1761585929463,0.25345305,115400.0,115390.0,0.36330524]
[1761585929667,0.25345305,115400.0,115390.0,0.78465972]
[1761585929668,0.00807941,115400.0,115390.0,0.78465972]
[1761585930081,0.00822448,115400.0,115390.0,1.20045972]
[1761585930870,0.00822448,115400.0,115390.0,1.20245972]
[1761585931635,0.00822448,115400.0,115390.0,1.54045972]
[1761585931834,0.00822448,115400.0,115390.0,1.54545972]
[1761585933932,0.00822448,115400.0,115390.0,1.15867524]
[1761585934369,0.00822448,115400.0,115390.0,1.54541972]
[1761585934577,0.05050457,115400.0,115390.0,1.11873524]
[1761585934964,0.02553457,115400.0,115390.0,1.13539524]
[1761585935502,1.01904752,115400.0,115390.0,0.38628524]
[1761585935628,0.99738375,115400.0,115390.0,0.59412]
[1761585935825,1.01599192,115400.0,115390.0,0.76744524]
[1761585936031,1.01599192,115400.0,115390.0,0.59412]
[1761585936452,1.01599705,115400.0,115390.0,0.59412]
[1761585936682,1.19563507,115400.0,115390.0,0.58912]
[1761585937247,1.10581606,115400.0,115390.0,0.58912]
[1761585937832,0.88142526,115400.0,115390.0,0.58912]
[1761585942628,0.90469189,115400.0,115390.0,0.58912]
[1761585942812,0.94087417,115400.0,115390.0,0.43668]
[1761585943021,0.94087417,115400.0,115390.0,0.58908]
[1761585943247,1.03069318,115400.0,115390.0,0.58908]
[1761585944677,0.94087417,115400.0,115390.0,0.58908]
[1761585951833,0.94096228,115400.0,115390.0,0.58908]
[1761585952036,0.95306228,115400.0,115390.0,0.58908]
[1761585952957,0.17332524,115390.0,115380.0,0.09008]
[1761585953165,0.84537182,115390.0,115380.0,0.67912]
[1761585953369,0.88112843,115390.0,115380.0,0.67912]
[1761585954627,0.88114677,115390.0,115380.0,0.67912]
[1761585955343,0.92605141,115390.0,115380.0,0.67912]
[1761585955742,0.33196861,115390.0,115380.0,0.67912]
[1761585955938,0.88114677,115390.0,115380.0,0.67912]
[1761585956924,0.89324677,115390.0,115380.0,0.67912]
[1761585957872,0.73078097,115390.0,115380.0,0.67912]
[1761585958938,0.34406861,115390.0,115380.0,0.67912]
[1761585959155,0.73078097,115390.0,115380.0,0.67912]
[1761585959595,0.73078097,115390.0,115380.0,0.58904]
[1761585961200,0.34406861,115390.0,115380.0,0.58904]
[1761585961436,0.73078097,115390.0,115380.0,0.58904]
[1761585962564,0.64096196,115390.0,115380.0,0.58904]
[1761585962766,0.6223095,115390.0,115380.0,0.58904]
[1761585964445,0.64099305,115390.0,115380.0,0.58904]
[1761585969393,0.64099305,115390.0,115380.0,0.67916]
[1761585971943,0.63186787,115390.0,115380.0,0.67916]
[1761585972719,0.63186787,115390.0,115380.0,0.62364]
[1761585972923,0.63186787,115390.0,115380.0,0.67908]
[1761585973126,0.61318432,115390.0,115380.0,0.67908]
[1761585974070,0.21062714,115390.0,115380.0,0.87928026]
[1761585974493,0.23447714,115390.0,115380.0,0.87928026]
[1761585974697,0.6211895,115390.0,115380.0,0.87928026]
[1761585975101,0.23447714,115390.0,115380.0,0.87928026]
[1761585975505,0.21062714,115390.0,115380.0,0.87928026]
[1761585976846,0.0373019,115390.0,115380.0,0.87928026]
[1761585976993,0.0089219,115390.0,115380.0,1.28934262]
[1761585977595,0.00082415,115390.0,115380.0,1.28934262]
[1761585978085,0.00082415,115390.0,115380.0,0.90263026]
[1761585978290,0.00082415,115390.0,115380.0,1.28934262]
[1761585978606,0.00082415,115390.0,115380.0,0.90263026]
[1761585978820,0.00082415,115390.0,115380.0,1.28934262]
[1761585980078,0.00082415,115390.0,115380.0,0.90263026]
[1761585980285,0.00082415,115390.0,115380.0,1.28934262]
[1761585981248,0.00082415,115390.0,115380.0,0.90263026]
[1761585981451,0.00082415,115390.0,115380.0,1.28934262]
[1761585981778,0.00082415,115390.0,115380.0,0.90263026]
[1761585985669,0.05262415,115390.0,115380.0,0.87928026]
[1761585985903,0.05262415,115390.0,115380.0,0.86375026]
[1761585986439,0.05262415,115390.0,115380.0,0.87928026]
[1761585987007,0.02877415,115390.0,115380.0,0.90263026]
[1761585987206,0.01318415,115390.0,115380.0,0.90263026]
[1761585988940,0.00082415,115390.0,115380.0,0.90263026]
[1761585992030,0.01656415,115390.0,115380.0,0.90263026]
[1761585992662,0.01656415,115390.0,115380.0,0.87928026]
[1761585992868,0.22526939,115390.0,115380.0,0.87928026]
[1761585993073,0.61177348,115390.0,115380.0,0.85234026]
[1761585993285,0.43844824,115390.0,115380.0,0.85234026]
[1761585993484,0.61177348,115390.0,115380.0,0.85234026]
[1761585993696,0.05194415,115390.0,115380.0,0.86751026]
[1761585994715,0.22526939,115390.0,115380.0,0.86751026]
[1761585994916,0.02808415,115390.0,115380.0,0.86751026]
[1761585995198,0.17414939,115390.0,115380.0,0.90234026]
[1761585995549,0.18988939,115390.0,115380.0,0.90234026]
[1761585995763,0.18988939,115390.0,115380.0,0.87884026]
[1761585995964,0.18988939,115390.0,115380.0,0.85234026]
[1761585995965,0.22526939,115390.0,115380.0,0.85234026]
[1761585996194,0.22526939,115390.0,115380.0,0.679]
[1761585996385,0.61177348,115390.0,115380.0,0.679]
[1761585996551,0.61177348,115390.0,115380.0,0.09012]
[1761585996753,0.61177348,115390.0,115380.0,0.67896]
[1761585997583,0.61177348,115390.0,115380.0,0.85230026]
[1761585998175,0.61177348,115390.0,115380.0,0.67896]
[1761585998854,0.61177348,115390.0,115380.0,0.85230026]
[1761585999294,0.61177348,115390.0,115380.0,0.67896]
[1761586003133,0.69153243,115390.0,115380.0,0.67896]
[1761586003332,0.69153243,115390.0,115380.0,0.52676]
[1761586003333,0.82563229,115390.0,115380.0,0.52676]
[1761586003533,0.82563229,115390.0,115380.0,0.679]
[1761586005230,1.21213638,115390.0,115380.0,0.679]
[1761586006024,0.82563229,115390.0,115380.0,0.679]
[1761586006586,0.74687334,115390.0,115380.0,0.679]
[1761586007750,2.25611943,115390.0,115380.0,0.29808]
[1761586007949,2.25611943,115390.0,115380.0,0.67904]
[1761586008086,2.3007891,115390.0,115380.0,0.67904]
[1761586011560,2.0218771,115390.0,115380.0,0.67904]
[1761586011769,2.11169611,115390.0,115380.0,0.67904]
[1761586011917,2.09304304,115390.0,115380.0,0.67904]
[1761586014359,1.93171704,115390.0,115380.0,0.67904]
[1761586014559,1.90142404,115390.0,115380.0,0.67904]
[1761586014750,1.11288994,115390.0,115380.0,0.67904]
[1761586014945,1.07670766,115390.0,115380.0,0.67904]
[1761586015190,0.69020357,115390.0,115380.0,0.67904]
[1761586015417,0.77288994,115390.0,115380.0,0.67904]
[1761586015575,0.74687334,115390.0,115380.0,0.67904]
[1761586015777,1.08687334,115390.0,115380.0,0.67904]
[1761586016352,0.70036925,115390.0,115380.0,0.67904]
[1761586016660,0.3160884,115390.0,115380.0,0.67904]
[1761586016831,0.20240939,115390.0,115380.0,0.87888026]
[1761586017443,0.22626939,115390.0,115380.0,0.87888026]
[1761586017810,0.22726939,115390.0,115380.0,0.87888026]
[1761586018028,0.22726939,115390.0,115380.0,0.90256026]
[1761586018029,0.01434415,115390.0,115380.0,0.90256026]
[1761586018235,0.20259939,115390.0,115380.0,0.90256026]
[1761586018980,0.20259939,115390.0,115380.0,0.87888026]
[1761586020123,0.02927415,115390.0,115380.0,0.87888026]
[1761586020372,0.02927415,115390.0,115380.0,0.90256026]
[1761586020537,0.00182415,115390.0,115380.0,0.90256026]
[1761586021513,0.00082415,115390.0,115380.0,0.90256026]
[1761586021929,0.00082415,115390.0,115380.0,0.90456026]
[1761586027992,0.00082415,115390.0,115380.0,0.95456026]
[1761586028194,0.17414939,115390.0,115380.0,0.93088026]
[1761586028382,0.01692415,115390.0,115380.0,0.93088026]
[1761586029012,0.19024939,115390.0,115380.0,0.95494026]
[1761586029218,0.19024939,115390.0,115380.0,0.16862]
[1761586029422,0.61273348,115390.0,115380.0,0.91375026]
[1761586029658,0.61373348,115390.0,115380.0,0.91375026]
[1761586029857,0.61373348,115390.0,115380.0,0.92907026]
[1761586030079,0.01792415,115390.0,115380.0,0.95313026]
[1761586030326,0.17514939,115390.0,115380.0,0.95313026]
[1761586030526,0.00182415,115390.0,115380.0,0.95313026]
[1761586030867,0.17514939,115390.0,115380.0,0.95313026]
[1761586031316,0.00182415,115390.0,115380.0,0.95313026]
[1761586031651,0.17514939,115390.0,115380.0,0.95313026]
[1761586032587,0.00182415,115390.0,115380.0,0.95313026]
[1761586041928,0.00182415,115390.0,115380.0,1.33966259]
[1761586042564,0.00182415,115390.0,115380.0,0.95313026]
[1761586042800,0.00182415,115390.0,115380.0,1.33966259]
[1761586043437,0.17514939,115390.0,115380.0,0.95313026]
[1761586043671,0.00182415,115390.0,115380.0,1.33966259]
[1761586044135,0.00182415,115390.0,115380.0,0.95313026]
[1761586044347,0.00182415,115390.0,115380.0,1.33966259]
[1761586047092,0.17514939,115390.0,115380.0,0.95313026]
[1761586047677,0.56168172,115390.0,115380.0,0.95313026]
[1761586048317,0.17514939,115390.0,115380.0,0.95313026]
[1761586048545,0.56168172,115390.0,115380.0,0.95313026]
[1761586052031,0.56168172,115390.0,115380.0,0.77979]
[1761586052290,0.56168172,115390.0,115380.0,0.95313026]
[1761586053327,0.17514939,115390.0,115380.0,0.95313026]
[1761586053547,0.57828172,115390.0,115380.0,0.92907026]
[1761586053739,0.57828172,115390.0,115380.0,0.95161026]
[1761586054373,0.56168172,115390.0,115380.0,0.95161026]
[1761586055387,0.17514939,115390.0,115380.0,0.95161026]
[1761586055607,0.56168172,115390.0,115380.0,0.95161026]
[1761586056010,0.56168172,115390.0,115380.0,0.77827]
[1761586056211,0.56168172,115390.0,115380.0,0.95161026]
[1761586056418,0.56168172,115390.0,115380.0,0.77827]
[1761586056620,1.21645435,115390.0,115380.0,0.14012]
[1761586056962,0.83802391,115390.0,115380.0,0.679]
[1761586057305,0.82992202,115390.0,115380.0,0.679]
[1761586058474,0.74010301,115390.0,115380.0,0.679]
[1761586063400,0.74819949,115390.0,115380.0,0.679]
[1761586064345,0.74819949,115390.0,115380.0,0.58888]
[1761586065810,0.36166716,115390.0,115380.0,0.58888]
[1761586065997,0.74819949,115390.0,115380.0,0.58888]
[1761586066388,0.72431949,115390.0,115380.0,0.61608]
[1761586066789,0.33778716,115390.0,115380.0,0.61608]
[1761586066991,0.72431949,115390.0,115380.0,0.61608]
[1761586067508,0.18324587,115390.0,115380.0,0.63862]
[1761586067979,0.5697782,115390.0,115380.0,0.63862]
[1761586068406,0.18324587,115390.0,115380.0,0.63862]
[1761586068586,0.5697782,115390.0,115380.0,0.63862]
[1761586069402,0.17514939,115390.0,115380.0,0.81196026]
[1761586069603,0.56168172,115390.0,115380.0,0.63862]
[1761586070210,0.56168172,115390.0,115380.0,0.81196026]
[1761586070360,0.56168172,115390.0,115380.0,0.63862]
[1761586072474,0.00182415,115390.0,115380.0,1.19849259]
[1761586073830,0.00182415,115390.0,115380.0,0.81196026]
[1761586074194,0.61410172,115390.0,115380.0,0.60998026]
[1761586074470,0.61410172,115390.0,115380.0,0.77813026]
[1761586074649,0.59022172,115390.0,115380.0,0.78946026]
[1761586074857,0.20368939,115390.0,115380.0,0.81200026]
[1761586075120,0.17514939,115390.0,115380.0,0.81200026]
[1761586076662,0.00182415,115390.0,115380.0,0.81200026]
[1761586077296,0.17514939,115390.0,115380.0,0.81200026]
[1761586077724,0.00182415,115390.0,115380.0,0.81200026]
[1761586078778,0.17514939,115390.0,115380.0,0.90208026]
[1761586079509,0.00182415,115390.0,115380.0,0.90208026]
[1761586079943,0.17514939,115390.0,115380.0,0.90208026]
[1761586081715,0.00182415,115390.0,115380.0,0.90208026]
[1761586082550,0.17514939,115390.0,115380.0,0.90208026]
[1761586083254,0.18324716,115390.0,115380.0,0.90208026]
[1761586084053,0.17514939,115390.0,115380.0,0.90208026]
[1761586084457,0.19164939,115390.0,115380.0,0.87954026]
[1761586084860,0.19164939,115390.0,115380.0,0.90304026]
[1761586085171,0.19974778,115390.0,115380.0,0.90304026]
[1761586085821,0.62358011,115390.0,115380.0,0.679]
[1761586088183,0.23704778,115390.0,115380.0,0.679]
[1761586088386,0.62358011,115390.0,115380.0,0.679]
[1761586088967,0.71339912,115390.0,115380.0,0.679]
[1761586090050,1.13611373,115390.0,115380.0,0.679]
[1761586090449,0.7495814,115390.0,115380.0,0.679]
[1761586090651,0.83940041,115390.0,115380.0,0.679]
[1761586091385,0.7495814,115390.0,115380.0,0.679]
[1761586091726,0.7485814,115390.0,115380.0,0.679]
[1761586091938,0.7515814,115390.0,115380.0,0.679]
[1761586094413,0.6715814,115390.0,115380.0,0.679]
[1761586097094,0.6715814,115390.0,115380.0,0.58892]
[1761586098852,0.28504907,115390.0,115380.0,0.58892]
[1761586099054,0.6715814,115390.0,115380.0,0.58892]
[1761586102377,1.07876766,115390.0,115380.0,0.58892]
[1761586102859,0.305703,115390.0,115380.0,0.58892]
[1761586103076,1.07876766,115390.0,115380.0,0.58892]
[1761586103984,0.6924462,115390.0,115380.0,0.58892]
[1761586104303,0.71110663,115390.0,115380.0,0.43668]
[1761586104498,0.71110663,115390.0,115380.0,0.58892]
[1761586105487,0.69045289,115390.0,115380.0,0.58892]
[1761586107127,0.69045425,115390.0,115380.0,0.58892]
[1761586110695,0.67179246,115390.0,115380.0,0.58892]
[1761586110896,0.69045668,115390.0,115380.0,0.58892]
[1761586117753,0.30371348,115390.0,115380.0,0.58892]
[1761586117951,0.69045668,115390.0,115380.0,0.58892]
[1761586118379,0.17335529,115370.0,115360.0,0.09012]
[1761586118596,0.2749843,115370.0,115360.0,0.67908]
[1761586118787,0.7008375,115370.0,115360.0,0.67908]
[1761586118993,0.73701978,115370.0,115360.0,0.67908]
[1761586119818,0.76303591,115370.0,115360.0,0.67908]
[1761586120233,0.85285492,115370.0,115360.0,0.67908]
[1761586121718,1.20395924,115370.0,115360.0,0.52684]
[1761586121897,1.20395924,115370.0,115360.0,0.67908]
[1761586122312,1.20495924,115370.0,115360.0,0.67908]
[1761586122708,1.2049577,115370.0,115360.0,0.67908]
[1761586123308,1.21374608,115370.0,115360.0,0.67908]
[1761586124130,3.00179728,115370.0,115360.0,0.52688]
[1761586124333,2.83397228,115370.0,115360.0,0.6801422]
[1761586124513,2.42321008,115370.0,115360.0,0.6801422]
[1761586125587,0.73718387,115370.0,115360.0,0.6801422]
[1761586125813,1.12392707,115370.0,115360.0,0.6801422]
[1761586126007,1.44702707,115370.0,115360.0,0.6801422]
[1761586127674,1.25168507,115370.0,115360.0,0.6801422]
[1761586127849,1.12392707,115370.0,115360.0,0.6801422]
[1761586128682,1.22717507,115370.0,115360.0,0.6801422]
[1761586128884,1.22716636,115370.0,115360.0,0.6801422]
[1761586129415,1.31698537,115370.0,115360.0,0.6801422]
[1761586131467,1.21373737,115370.0,115360.0,0.6801422]
[1761586131816,1.23097036,115370.0,115360.0,0.6801422]
[1761586133160,1.10703591,115370.0,115360.0,0.6801422]
[1761586134044,1.10703591,115370.0,115360.0,0.5900222]
[1761586144193,1.11513632,115370.0,115360.0,0.5900222]
[1761586147437,2.86826132,115370.0,115360.0,0.5900222]
[1761586147641,2.47050333,115370.0,115360.0,0.5900222]
[1761586148059,2.28624633,115370.0,115360.0,0.5900222]
[1761586149502,1.89950313,115370.0,115360.0,0.5900222]
[1761586149706,1.20495533,115370.0,115360.0,0.5900222]
[1761586150928,1.11513632,115370.0,115360.0,0.5900222]
[1761586153997,1.93935232,115370.0,115360.0,0.4377422]
[1761586154213,1.86974532,115370.0,115360.0,0.5900222]
[1761586154851,1.26131432,115370.0,115360.0,0.5900222]
[1761586155071,1.11513632,115370.0,115360.0,0.5900222]
[1761586155551,1.20495533,115370.0,115360.0,0.5900222]
[1761586158995,1.11514415,115370.0,115360.0,0.5900222]
[1761586161409,1.31121552,115370.0,115360.0,0.5900222]
[1761586163689,0.86707132,115370.0,115360.0,0.5900222]
[1761586163898,1.11514415,115370.0,115360.0,0.5900222]
[1761586164738,1.12953876,115370.0,115360.0,0.5900222]
[1761586164979,1.12953876,115370.0,115360.0,0.4377422]
[1761586165191,2.34616376,115370.0,115360.0,0.5900222]
[1761586165364,2.34616376,115370.0,115360.0,0.0009822]
[1761586165365,2.75159115,115370.0,115360.0,0.0009822]
[1761586165770,3.13940487,115370.0,115360.0,0.5123022]